Cogmind - Beta 15 @@@ ROGUE MODE // 2025.06.28 @ 12:56:46 Player: 3.14 Result: Destroyed by S6-UU5(R) with Subdweller Laser Performance ------------- Evolutions (0) 0 Regions Visited (3) 600 Robots Destroyed (39) 195 Value Destroyed (1086) 1086 Prototype IDs (2) 40 Alien Tech Used (0) 0 Bonus (0) 0 TOTAL SCORE: 1921 Bonus ------- None Cogmind --------- Core Integrity 0/250 Matter 287/300 Energy 58/200 System Corruption 0% Temperature Cool (42) Movement Core (900) Ox17 Location -10/Subcaves Parts ------- > --- POWER (1) -------- Subdweller Power Source > --- PROPULSION (2) --- (None) > --- UTILITY (2) ------ High-capacity Storage Unit Makeshift Light Armor Plating > --- WEAPON (2) ------- Subdweller Laser Light Assault Rifle > --- INVENTORY (20) --- Ion Engine Subdweller Power Source Subdweller Monowheel Improved Heat Sink Huge Storage Unit Weapon Shielding Hacking Suite Hacking Suite Medium Laser Subdweller Beam Cannon Assault Rifle Assault Rifle Assault Rifle Assault Rifle Subdweller Machine Gun Makeshift Shrapnel Gun Grenade Launcher Grenade Launcher Mining Laser Enhanced Flamer Peak State ------------ > --- POWER ------------ Subdweller Power Source > --- PROPULSION ------- Light Treads Light Treads > --- UTILITY ---------- High-capacity Storage Unit Makeshift Light Armor Plating > --- WEAPON ----------- Subdweller Beam Cannon Makeshift Shrapnel Gun > --- INVENTORY -------- Ion Engine Subdweller Power Source Improved Heat Sink Huge Storage Unit Weapon Shielding Hacking Suite Hacking Suite Medium Laser Subdweller Laser Assault Rifle Assault Rifle Assault Rifle Assault Rifle Light Assault Rifle Light Assault Rifle Grenade Launcher Grenade Launcher Mining Laser Enhanced Flamer [Rating: 17] Favorites ----------- Power Light Ion Engine Engine Light Ion Engine Propulsion Light Treads Treads Light Treads Leg Aluminum Leg Utility High-capacity Storage Unit Storage High-capacity Storage Unit Processor Targeting Computer Protection Makeshift Light Armor Plating Weapon Light Assault Rifle Energy Gun Medium Laser Energy Cannon Subdweller Beam Cannon Ballistic Gun Light Assault Rifle Special Weapon Mining Laser Build | -11 -10 -10 -10 ------- Run | Yrd Mat Min Sub Slots Evolved . | . . . . Power . | . . . . Propulsion . | . . . . Utility . | . . . . Weapon . | . . . . Parts Attached 18 | . 7 1 10 Power 4 | . 1 1 2 Engine 4 | . 1 1 2 Core . | . . . . Reactor . | . . . . Propulsion 3 | . 2 . 1 Treads 3 | . 2 . 1 Leg . | . . . . Wheel . | . . . . Hover . | . . . . Flight . | . . . . Utility 4 | . 3 . 1 Device . | . . . . Storage 2 | . 2 . . Processor 1 | . 1 . . Hackware . | . . . . Protection 1 | . . . 1 Artifact . | . . . . Weapon 7 | . 1 . 6 Energy Gun 1 | . . . 1 Energy Cannon 1 | . . . 1 Ballistic Gun 4 | . 1 . 3 Ballistic Cannon . | . . . . Launcher . | . . . . Special Weapon 1 | . . . 1 Impact Weapon . | . . . . Slashing Weapon . | . . . . Piercing Weapon . | . . . . Special Melee Weapon . | . . . . Unidentified Prototypes . | . . . . Parts Lost 3 | . . . 3 Power . | . . . . Propulsion 3 | . . . 3 Utility . | . . . . Weapon . | . . . . Highest Loss Streak 2 | . . . 2 To Critical Strikes . | . . . . Average Backups 15 | . 12 15 18 Power 1 | . 1 1 1 Propulsion 1 | . 2 1 . Utility 3 | . 2 4 4 Weapon 9 | . 6 9 11 Tool/Special . | . . . . Unused Backups 23 | . 6 . 17 Power 3 | . 2 . 1 Propulsion 5 | . 4 . 1 Utility 5 | . . . 5 Weapon 10 | . . . 10 Tool/Special . | . . . . Average Slot Usage (%) 96 | . 90 100 99 Engine 14 | . 14 14 14 Treads 27 | . 27 28 27 Storage 14 | . 14 14 14 Processor 9 | . 5 14 9 Protection 2 | . . . 4 Energy Gun 2 | . 3 . 1 Energy Cannon 4 | . . . 8 Ballistic Gun 21 | . 24 28 16 Peak Build Rating 17 | . 9 9 17 Average Rating 10 | . 7 9 13 On Entrance 7 | 6 6 9 9 Naked Turns . | . . . . Heaviest Build 61 | 11 48 48 61 Greatest Support 40 | 20 40 40 40 Greatest Overweight (x) 1 | . 1 1 1 Average Overweight (x) . | . . 1 1 Largest Inventory Capacity 20 | . 20 20 20 Average Capacity 18 | . 15 20 20 Most Carried 20 | . 15 16 20 Average Carried 15 | . 12 15 18 Final Capacity 20 | 8 20 20 20 Final Carried 20 | 6 15 16 20 Class Distribution -------------------- 100% | Mutant Dominant Class ---------------- Mutant | -10/Materials Mutant | -10/Mines Mutant | -10/Subcaves Resources | -11 -10 -10 -10 ----------- Run | Yrd Mat Min Sub Matter Collected 818 | 200 279 84 255 Remotely . | . . . . Salvage Created 1423 | . 795 225 403 Parts 94 | . 48 12 34 Haulers Intercepted 2 | . 2 . . Recyclers Shooed . | . . . . Parts Field Recycled . | . . . . Retrieved Matter . | . . . . Parts Self-Destructed 12 | . . . 12 Prevented . | . . . . Kills | -11 -10 -10 -10 ------- Run | Yrd Mat Min Sub Combat Hostiles Destroyed 31 | . 15 4 12 Guns 21 | . 15 4 2 Cannons 10 | . . . 10 Classes Destroyed 9 | . 7 . 2 Worker 1 | . 1 . . Hauler 2 | . 2 . . Recycler 2 | . 1 1 . Operator 2 | . 2 . . Watcher 1 | . 1 . . Swarmer 6 | . 3 . 3 Grunt 16 | . 12 4 . Sentry 1 | . . . 1 Subdweller 8 | . . . 8 Best Kill Streak 4 | . 4 2 3 Combat Bots Only 3 | . 3 2 3 Max Kills in Single Turn 1 | . 1 1 1 Gunslinging . | . . . . Exploded . | . . . . Melee . | . . . . Uniques/NPCs Destroyed . | . . . . Combat | -11 -10 -10 -10 -------- Run | Yrd Mat Min Sub Hostile Shots Fired 109 | . 38 26 45 Missed 23 | . 10 4 9 Hits 86 | . 28 22 36 Projectile 86 | . 28 22 36 Damage Taken 1388 | . 326 287 775 Core 258 | . 50 32 176 Absorbed by Shields . | . . . . Regen/Repaired (Parts) 220 | . 220 . . Core Remaining (%) 100 | 100 . . . Volleys Fired 122 | . 51 21 50 Largest 2 | . 2 2 2 Hottest 140 | . 70 40 140 Shots Fired 225 | . 102 42 81 Gun 184 | . 102 42 40 Cannon 23 | . . . 23 Launcher . | . . . . Special 18 | . . . 18 Kinetic 170 | . 97 42 31 Thermal 55 | . 5 . 50 Explosive . | . . . . Electromagnetic . | . . . . Robot Hit Streak 23 | . 13 13 23 Robot Miss Streak 3 | . 3 1 2 Penetration Max . | . . . . Secondary Targets 4 | . 3 1 . Max Gunslinging Chain 1 | . 1 1 . Shots Hit Robots 150 | . 68 34 48 Core Hits 68 | . 36 13 19 Critical Kills . | . . . . Critical Parts Destroyed . | . . . . Critical Strikes 1 | . 1 . . Burn 1 | . 1 . . Melee Attacks . | . . . . Impact . | . . . . Slashing . | . . . . Piercing . | . . . . Sneak Attacks . | . . . . Combat Hostiles . | . . . . Follow-up Attacks . | . . . . Damage Inflicted 2050 | . 769 378 903 Guns 1591 | . 752 378 461 Cannons 442 | . . . 442 Explosions . | . . . . Melee . | . . . . Ramming 17 | . 17 . . Kinetic 1377 | . 703 378 296 Thermal 656 | . 49 . 607 Explosive . | . . . . Electromagnetic . | . . . . Impact . | . . . . Slashing . | . . . . Piercing . | . . . . Highest Corruption . | . . . . Average Corruption . | . . . . Corruption Purged . | . . . . Corruption Blocked . | . . . . Overload Shots . | . . . . Overflow Damage . | . . . . Projectiles . | . . . . Explosions . | . . . . Melee . | . . . . Knockbacks . | . . . . Impact . | . . . . Kinetic . | . . . . Secondary . | . . . . Self-Inflicted Damage . | . . . . Shots . | . . . . Rammed 4 | . 4 . . Targets Rammed 5 | . 5 . . Kicked . | . . . . Crushed 1 | . 1 . . Highest Temperature 132 | . 120 30 132 Average Temperature 34 | . 32 11 57 Received Heat Transfer 483 | . 156 162 165 Siege Activations . | . . . . Martial Activations . | . . . . Shielding Activations . | . . . . Robots Disrupted . | . . . . Combat Hostiles . | . . . . Robots Corrupted . | . . . . Combat Hostiles . | . . . . Parts Fried . | . . . . Impact Corruptions . | . . . . Robots Melted . | . . . . Combat Hostiles . | . . . . Parts Melted 2 | . 1 . 1 Heat Transferred 1014 | . 222 . 792 Parts Sabotaged . | . . . . Parts Stolen . | . . . . Parts Stripped . | . . . . Power Chain Reactions . | . . . . Alert | -11 -10 -10 -10 ------- Run | Yrd Mat Min Sub Maximum Alert Level 1 | . 1 . . Low Security (%) 94 | . 91 100 . Level 1 5 | . 8 . . Level 2 . | . . . . Level 3 . | . . . . Level 4 . | . . . . Level 5 . | . . . . High Security . | . . . . Max Security . | . . . . Peak Influence 224 | . 224 90 . Initial 45 | . . 45 . Average 79 | . 118 18 . Influence Increases 743 | . 533 120 90 Destroy 0b10 Robot/C 460 | . 300 80 80 Destroy 0b10 Robot/NC 40 | . 35 5 . Destroy Leader 96 | . 66 20 10 Successful Hack 26 | . 26 . . Destroy Structure 1 | . 1 . . Lose Combat Pursuer 120 | . 105 15 . Influence Decreases 743 | . 415 238 90 Entered New Map 73 | . . 73 . Time Decay 670 | . 415 165 90 Squads Dispatched 3 | . 3 . . Investigation 1 | . 1 . . Extermination . | . . . . Reinforcement 2 | . 2 . . Assault . | . . . . Garrison . | . . . . Intercept . | . . . . Searches Triggered . | . . . . Construction Impeded . | . . . . Haulers Reinforced . | . . . . Active Scanning Responses . | . . . . Cargo Convoy Interrupts . | . . . . Stealth | -11 -10 -10 -10 --------- Run | Yrd Mat Min Sub Distress Signals 6 | . 6 . . Communications Jammed . | . . . . Distress Signals . | . . . . Times Spotted 47 | . 30 5 12 Peak Tracking Total 7 | . 7 2 2 Tactical Retreats 4 | . 3 1 . Traps | -11 -10 -10 -10 ------- Run | Yrd Mat Min Sub Traps Triggered 1 | . 1 . . Indirectly . | . . . . Trap Hack Attempts . | . . . . Triggered . | . . . . Disarmed . | . . . . Reprogrammed . | . . . . Reused . | . . . . Traps Extracted . | . . . . Installed . | . . . . Triggered . | . . . . Machines | -11 -10 -10 -10 ---------- Run | Yrd Mat Min Sub Machines Disabled . | . . . . Max in Single Turn . | . . . . Machines Repaired . | . . . . Machines Dismantled . | . . . . Machines Sabotaged . | . . . . Overloaded Fab Kills . | . . . . Hacking | -11 -10 -10 -10 --------- Run | Yrd Mat Min Sub Machines Accessed 5 | . 5 . . Terminals 4 | . 4 . . Fabricators . | . . . . Repair Stations 1 | . 1 . . Recycling Units . | . . . . Scanalyzers . | . . . . Garrison Access . | . . . . Total Hacks 22 | . 22 . . Successful 16 | . 16 . . Failed 6 | . 6 . . Catastrophic . | . . . . Database Lockouts . | . . . . Manual 11 | . 11 . . Terminals 16 | . 16 . . Fabricators . | . . . . Repair Stations 6 | . 6 . . Recycling Units . | . . . . Scanalyzers . | . . . . Garrison Access . | . . . . Terminal Hacks 6 | . 6 . . Robot Analysis 4 | . 4 . . Prototype ID Bank 1 | . 1 . . Locate Traps 1 | . 1 . . Fabricator Hacks . | . . . . Repair Station Hacks 6 | . 6 . . Scan Component 3 | . 3 . . Repair 3 | . 3 . . Recycling Unit Hacks . | . . . . Scanalyzer . | . . . . Garrison Access Hacks . | . . . . Unauthorized Hacks 4 | . 4 . . Terminals 4 | . 4 . . Skim 4 | . 4 . . Fabricators . | . . . . Repair Stations . | . . . . Recycling Units . | . . . . Scanalyzers . | . . . . Garrison Access . | . . . . Data Cores Recovered . | . . . . Used . | . . . . Hacking Detections 5 | . 5 . . Full Trace Events . | . . . . Feedback Events . | . . . . Feedback Blocked . | . . . . Robot Schematics Acquired . | . . . . Robots Built . | . . . . Authchips . | . . . . Time . | . . . . Total Robot Build Rating . | . . . . Part Schematics Acquired . | . . . . Parts Built . | . . . . Authchips . | . . . . Time . | . . . . Total Part Build Rating . | . . . . Parts Repaired 3 | . 3 . . Time 78 | . 78 . . Parts Recycled . | . . . . Recycled Matter . | . . . . Retrieved Matter . | . . . . Retrieved Components . | . . . . Parts Scanalyzed . | . . . . Part Schematics Acquired . | . . . . Parts Damaged . | . . . . Bothacking | -11 -10 -10 -10 ------------ Run | Yrd Mat Min Sub Used RIF Installer . | . . . . Robots Hacked . | . . . . Non-combat . | . . . . Combat . | . . . . Robot Hacks Applied . | . . . . Relay Couplers Released . | . . . . Fabnet Peak Effective % . | . . . . Robots Rewired . | . . . . Allies Hacked . | . . . . Hacks Repelled . | . . . . Allies | -11 -10 -10 -10 -------- Run | Yrd Mat Min Sub Total Allies . | . . . . Largest Group . | . . . . Highest-Rated Group . | . . . . Highest-Rated Ally . | . . . . Total Orders . | . . . . Ally Attacks . | . . . . Total Damage . | . . . . Kills . | . . . . Allies Corrupted . | . . . . Allies Melted . | . . . . Intel | -11 -10 -10 -10 ------- Run | Yrd Mat Min Sub Active Infowar (turns) . | . . . . Robot Analysis Total 4 | . 4 . . Derelict Logs Recovered . | . . . . Drone Launches . | . . . . Drone Recoveries . | . . . . Exploration | -11 -10 -10 -10 ------------- Run | Yrd Mat Min Sub Turns Passed 3869 | . 1178 745 1946 Spaces Moved 1494 | 1 488 284 721 Core . | . . . . Treads 1493 | . 488 284 721 Legs 1 | 1 . . . Wheels . | . . . . Hover . | . . . . Flight . | . . . . Fastest Speed 120 | 120 160 240 240 Average Speed 218 | 120 175 240 240 Slowest Speed 240 | 120 240 240 240 Overloaded Moves . | . . . . Propulsion Burnouts . | . . . . Robots Hopped . | . . . . Potential Cave-ins . | . . . . Cave-ins Triggered . | . . . . Exploration Rate (%) 44 | 2 71 60 46 Regions Visited 3 Branch Regions 2 Pre-discovered Areas . | . . . . Known Exits Taken . | . . . . Unknown Exits Taken 3 | 1 1 1 . Scrap Searched 3 | . . . 3 Spaces Dug . | . . . . Terrain Destroyed 1 | . . . 1 Melee . | . . . . Projectile 1 | . . . 1 AOE . | . . . . Terrain Rammed . | . . . . Walls Destroyed . | . . . . Machines Disabled . | . . . . Actions | -11 -10 -10 -10 --------- Run | Yrd Mat Min Sub Total 1847 | . 716 311 820 Wait 168 | . 143 4 21 Move 1491 | . 487 283 721 Hop . | . . . . Pick Up 22 | . 14 1 7 Fast Attach 5 | . 4 . 1 Attach 1 | . . . 1 Detach 1 | . . . 1 Swap 19 | . 5 1 13 Drop 13 | . 7 1 5 Fire 122 | . 51 21 50 Melee . | . . . . Ram . | . . . . Kick . | . . . . Crush 5 | . 5 . . Escape Stasis . | . . . . Rewire . | . . . . Trap . | . . . . Miscellaneous . | . . . . Route ------- -11/Scrapyard -10/Materials (discovered 3 exits: [*Mat x2] / [*Min]) -10/Mines -10/Subcaves History --------- Turn | Location | Event 1 | -11/Scrapyard | Discovered new exit (range 0) 1 | -11/Scrapyard | Entered Materials 319 | -10/Materials | Build established: Mutant 331 | -10/Materials | Discovered new exit (range 15) 519 | -10/Materials | Discovered new exit (range 7) 810 | -10/Materials | Discovered new exit (range 13) 908 | -10/Materials | Repaired Lgt. Treads 935 | -10/Materials | Repaired Lgt. Treads 963 | -10/Materials | Repaired Lgt. Treads 1179 | -10/Materials | Entered Mines 1662 | -10/Mines | A weapon hastily lodged in a ceiling crevice suddenly fell to the ground 1876 | -10/Mines | Discovered new exit (range 6) 1924 | -10/Mines | Entered Subcaves 2211 | -10/Subcaves | A swath of the cavern ceiling suddenly collapsed 2469 | -10/Subcaves | Disturbed a concealed Subdweller 2873 | -10/Subcaves | Core integrity fell below 50% 3853 | -10/Subcaves | Core integrity fell below 20% 3870 | -10/Subcaves | Destroyed by S6-UU5(R) with Subdweller Laser Last Messages --------------- 03022_ Lgt. Assault Rifle fries itself beyond repair. 03023_ Flight Unit fries itself beyond repair. 03197_ Discarded Targeting Computer. 03423_ Subatomizers dissect the Sub. Optics. 03492_ Acquired 20 matter. 03765_ Acquired 12 matter. 03770_ 12-4R4(R) destroyed. 03776_ Acquired 8 matter. 03780_ Acquired Sub. Monowheel. 03805_ Searching scrap... 03805_ Found Sub. Monowheel. 03805_ Found Sub. Machine Gun. 03805_ Found 62 Matter. 03813_ Subatomizers dissect the Sub. Monowheel. 03815_ Y1-A4M(O) collects matter. 03815_ Dropped Lgt. Assault Rifle. 03815_ Acquired Sub. Machine Gun. 03850_ Lgt. Treads destroyed. 03859_ Sub. Beam Cannon shoots sparks and powers down. 03869_ Destroyed Scrap Shield. Map ----- +----------------------------------------------------+ | | | | | | | | | | | | | | | | | | | | | | | | | | | | | | | | | | | | | ?????????????????????????????????????????????????? | | ?????????????????????????????????????????????????? | | ??????????????????????????####???????????????????? | | ????????????????????????## < ????????????????????? | | ???????????????????????##< ?????????????????????? | | ???????????????????????#<^<#?????????????????????? | | ???????????????????????#